fUST/lending_fUST_20240120
["ID","MTS","AMOUNT","RATE_DAILY","PERIOD"]
[312180492,1705681841097,-14127.28,0.00027397,2]
[312180494,1705681841106,-500.0,0.00027397,2]
[312180496,1705681841115,-500.0,0.00027397,2]
[312180498,1705681841124,-230.92803459,0.00027397,2]
[312180500,1705681841134,-500.0,0.00027397,2]
[312180502,1705681841143,-588.66,0.00027397,2]
[312180504,1705681841157,-334.15306829,0.00027397,2]
[312180506,1705681841166,-346.62671906,0.00027397,2]
[312180508,1705681841177,-500.0,0.00027397,2]
[312180510,1705681841189,-864.61,0.00027397,2]
[312180511,1705681841199,-656.57,0.00027397,2]
[312180513,1705681841209,-500.0,0.00027397,2]
[312180515,1705681841221,-500.0,0.00027397,2]
[312180517,1705681841232,-500.0,0.00027397,2]
[312180519,1705681841243,-500.0,0.00027397,2]
[312180521,1705681841254,-500.0,0.00027397,2]
[312180523,1705681841271,-500.0,0.00027397,2]
[312180525,1705681841283,-500.0,0.00027397,2]
[312180527,1705681841298,-500.0,0.00027397,2]
[312180529,1705681841311,-500.0,0.00027397,2]
[312180531,1705681841321,-500.0,0.00027397,2]
[312180533,1705681841333,-500.0,0.00027397,2]
[312180535,1705681841344,-500.0,0.00027397,2]
[312180537,1705681841355,-500.0,0.00027397,2]
[312180539,1705681841364,-500.0,0.00027397,2]
[312180540,1705681841375,-500.0,0.00027397,2]
[312180542,1705681841385,-500.0,0.00027397,2]
[312180545,1705681841395,-500.0,0.00027397,2]
[312180546,1705681841413,-500.0,0.00027397,2]
[312180548,1705681841423,-500.0,0.00027397,2]
[312180550,1705681841432,-268.66,0.00027397,2]
[312180552,1705681841443,-500.0,0.00027397,2]
[312180554,1705681841452,-500.0,0.00027397,2]
[312180556,1705681841462,-1334.87,0.00027397,2]
[312180558,1705681841472,-505.91050985,0.00027397,2]
[312180560,1705681841481,-500.0,0.00027397,2]
[312180561,1705681841490,-500.0,0.00027397,2]
[312180563,1705681841500,-286.11047609,0.00027397,2]
[312180565,1705681841510,-500.0,0.00027397,2]
[312180567,1705681841520,-500.0,0.00027397,2]
[312180569,1705681841530,-500.0,0.00027397,2]
[312180571,1705681841540,-500.0,0.00027397,2]
[312180573,1705681841550,-509.91150569,0.00027397,2]
[312180575,1705681841560,-501.4348099,0.00027397,2]
[312180577,1705681841570,-500.0,0.00027397,2]
[312180579,1705681841579,-500.0,0.00027397,2]
[312180581,1705681841588,-501.2440382,0.00027397,2]
[312180583,1705681841598,-500.0,0.00027397,2]
[312180585,1705681841607,-1613.11,0.00027397,2]
[312180587,1705681841616,-558.98499272,0.00027397,2]
[312180589,1705681841626,-500.0,0.00027397,2]
[312180591,1705681841635,-500.0,0.00027397,2]
[312180592,1705681841643,-3692.83,0.00027397,2]
[312180594,1705681841660,-500.0,0.00027397,2]
[312180596,1705681841670,-500.0,0.00027397,2]
[312180598,1705681841679,-500.0,0.00027397,2]
[312180600,1705681841691,-500.0,0.00027397,2]
[312180602,1705681841700,-500.0,0.00027397,2]
[312180604,1705681841709,-534.41678355,0.00027397,2]
[312180606,1705681841718,-500.0,0.00027397,2]
[312180608,1705681841727,-500.0,0.00027397,2]
[312180610,1705681841736,-500.0,0.00027397,2]
[312180612,1705681841745,-500.0,0.00027397,2]
[312180614,1705681841754,-507.80576865,0.00027397,2]
[312180616,1705681841763,-1075.66,0.00027397,2]
[312180618,1705681841772,-1384.48,0.00027397,2]
[312180620,1705681841781,-500.0,0.00027397,2]
[312180621,1705681841790,-716.62,0.00027397,2]
[312180623,1705681841800,-500.0,0.00027397,2]
[312180625,1705681841809,-777.15,0.00027397,2]
[312180627,1705681841819,-500.0,0.00027397,2]
[312180629,1705681841829,-500.0,0.00027397,2]
[312180631,1705681841838,-500.0,0.00027397,2]
[312180633,1705681841847,-355.82780142,0.00027397,2]
[312180635,1705681841857,-500.99613015,0.00027397,2]
[312180637,1705681841867,-500.58497799,0.00027397,2]
[312180639,1705681841877,-500.0,0.00027397,2]
[312180641,1705681841887,-500.0,0.00027397,2]
[312180643,1705681841903,-3478.12894861,0.00027555,2]
[312180645,1705681841914,-26130.65114817,0.00027571,2]
[312180647,1705681841924,-500.0,0.0002767,2]
[312180649,1705681841934,-745.22,0.0002767,2]
[312180651,1705681841944,-6659.34,0.0002767,2]
[312180653,1705681841953,-842.15,0.0002767,2]
[312180654,1705681841964,-500.0,0.00027671,2]
[312180655,1705681841975,-500.0,0.00027671,2]
[312180656,1705681841985,-500.0,0.00027671,2]
[312180657,1705681841995,-505.36171351,0.00027671,2]
[312180658,1705681842005,-500.0,0.00027671,2]
[312180659,1705681842015,-500.0,0.00027671,2]
[312180660,1705681842025,-454.34796433,0.00027671,2]
[312180661,1705681842034,-500.0,0.00027671,2]
[312180662,1705681842046,-500.86771326,0.00027671,2]
[312180663,1705681842056,-500.0,0.00027671,2]
[312180668,1705681842132,-500.0,0.00027671,2]
[312180670,1705681842142,-500.0,0.00027671,2]
[312180672,1705681842156,-500.0,0.00027671,2]
[312180674,1705681842166,-467.08001177,0.00027671,2]
[312180676,1705681842175,-514.26450996,0.00027671,2]
[312180678,1705681842186,-500.0,0.00027671,2]
[312180681,1705681842196,-500.0,0.00027671,2]
[312180684,1705681842205,-505.04589673,0.00027671,2]
[312180686,1705681842223,-500.0,0.00027671,2]
[312180688,1705681842234,-500.0,0.00027671,2]
[312180690,1705681842244,-500.0,0.00027671,2]
[312180692,1705681842255,-500.0,0.00027671,2]
[312180694,1705681842265,-500.0,0.00027671,2]
[312180696,1705681842277,-500.0,0.00027671,2]
[312180699,1705681842287,-500.0,0.00027671,2]
[312180701,1705681842298,-500.0,0.00027671,2]
[312180703,1705681842308,-500.0,0.00027671,2]
[312180705,1705681842319,-500.0,0.00027671,2]
[312180707,1705681842328,-405.76716243,0.00027671,2]
[312180709,1705681842338,-633.835,0.00027671,2]
[312180711,1705681842348,-500.0,0.00027671,2]
[312180713,1705681842358,-500.0,0.00027671,2]
[312180715,1705681842368,-500.0,0.00027671,2]
[312180717,1705681842377,-500.0,0.00027671,2]
[312180719,1705681842387,-500.0,0.00027671,2]
[312180721,1705681842402,-500.0,0.00027671,2]
[312180724,1705681842412,-505.94154697,0.00027671,2]
[312180727,1705681842422,-500.0,0.00027671,2]
[312180731,1705681842432,-500.0,0.00027671,2]
[312180734,1705681842443,-500.0,0.00027671,2]
[312180739,1705681842453,-500.0,0.00027671,2]
[312180744,1705681842464,-500.0,0.00027671,2]
[312180747,1705681842474,-500.0,0.00027671,2]
[312180749,1705681842483,-500.0,0.00027671,2]
[312180752,1705681842493,-500.0,0.00027671,2]
[312180755,1705681842503,-500.0,0.00027671,2]
[312180758,1705681842513,-500.0,0.00027671,2]
[312180760,1705681842524,-1837.6,0.00027671,2]
[312180762,1705681842534,-500.0,0.00027671,2]
[312180764,1705681842544,-500.0,0.00027671,2]
[312180766,1705681842554,-500.0,0.00027671,2]
[312180768,1705681842564,-500.0,0.00027671,2]
[312180770,1705681842573,-500.0,0.00027671,2]
[312180772,1705681842583,-500.0,0.00027671,2]
[312180774,1705681842592,-653.87,0.00027671,2]
[312180776,1705681842601,-500.0,0.00027671,2]
[312180778,1705681842611,-500.0,0.00027671,2]
[312180780,1705681842619,-500.0,0.00027671,2]
[312180782,1705681842630,-500.0,0.00027671,2]
[312180784,1705681842639,-500.0,0.00027671,2]
[312180786,1705681842652,-500.0,0.00027671,2]
[312180788,1705681842663,-500.0,0.00027671,2]
[312180790,1705681842672,-500.0,0.00027671,2]
[312180792,1705681842680,-500.0,0.00027671,2]
[312180794,1705681842690,-500.0,0.00027671,2]
[312180796,1705681842699,-500.0,0.00027671,2]
[312180798,1705681842708,-500.0,0.00027671,2]
[312180800,1705681842718,-500.0,0.00027671,2]
[312180802,1705681842727,-579.32914924,0.00027671,2]
[312180804,1705681842736,-500.0,0.00027671,2]
[312180806,1705681842745,-500.0,0.00027671,2]
[312180808,1705681842755,-500.0,0.00027671,2]
[312180810,1705681842764,-500.0,0.00027671,2]
[312180812,1705681842773,-500.0,0.00027671,2]
[312180814,1705681842782,-519.01649096,0.00027671,2]
[312180816,1705681842791,-500.80353804,0.00027671,2]
[312180818,1705681842800,-947.99,0.00027671,2]
[312180820,1705681842809,-500.0,0.00027671,2]
[312180822,1705681842818,-500.0,0.00027671,2]
[312180824,1705681842830,-500.0,0.00027671,2]
[312180826,1705681842840,-475.86267501,0.00027671,2]
[312180828,1705681842849,-500.0,0.00027671,2]
[312180830,1705681842859,-500.0,0.00027671,2]
[312180832,1705681842872,-500.0,0.00027671,2]
[312180834,1705681842882,-500.0,0.00027671,2]
[312180836,1705681842891,-500.0,0.00027671,2]
[312180838,1705681842903,-500.0,0.00027671,2]
[312180840,1705681842912,-500.0,0.00027671,2]
[312180842,1705681842921,-500.0,0.00027671,2]
[312180845,1705681842931,-505.22432973,0.00027671,2]
[312180848,1705681842940,-500.0,0.00027671,2]
[312180850,1705681842949,-500.0,0.00027671,2]
[312180851,1705681842958,-500.0,0.00027671,2]
[312180852,1705681842968,-500.0,0.00027671,2]
[312180853,1705681842978,-500.0,0.00027671,2]
[312180854,1705681842987,-500.0,0.00027671,2]
[312180855,1705681842996,-500.0,0.00027671,2]
[312180856,1705681843005,-215.87885665,0.00027671,2]
[312180857,1705681843015,-180.91474899,0.00027671,2]
[312180858,1705681843026,-500.0,0.00027671,2]
[312180859,1705681843035,-500.0,0.00027671,2]
[312180860,1705681843045,-1088.19,0.00027671,2]
[312180861,1705681843054,-374.69803746,0.00027671,2]
[312180862,1705681843064,-500.0,0.00027671,2]
[312180863,1705681843074,-500.0,0.00027671,2]
[312180864,1705681843083,-684.42,0.00027671,2]
[312180865,1705681843093,-500.0,0.00027671,2]
[312180866,1705681843102,-3450.28,0.00027671,2]
[312180867,1705681843112,-500.0,0.00027671,2]
[312180868,1705681843121,-3665.59,0.00027671,2]
[312180869,1705681843132,-500.0,0.00027671,2]
[312180870,1705681843142,-855.15,0.00027671,2]
[312180871,1705681843155,-609.64,0.00027671,2]
[312180872,1705681843164,-500.0,0.00027671,2]
[312180873,1705681843174,-712.0,0.00027671,2]
[312180874,1705681843191,-500.0,0.00027671,2]
[312180875,1705681843201,-500.0,0.00027671,2]
[312180876,1705681843212,-1748.19,0.00027671,2]
[312180877,1705681843223,-509.02632323,0.00027671,2]
[312180878,1705681843234,-500.0,0.00027671,2]
[312180879,1705681843244,-500.0,0.00027671,2]
[312180880,1705681843254,-333.37243098,0.00027671,2]
[312180881,1705681843266,-500.0,0.00027671,2]
[312180882,1705681843276,-10693.43,0.00027671,2]
[312180883,1705681843286,-2978.47,0.00027671,2]
[312180884,1705681843296,-698.19,0.00027671,2]
[312180885,1705681843306,-500.0,0.00027671,2]
[312180886,1705681843315,-500.0,0.00027671,2]
[312180887,1705681843325,-500.0,0.00027671,2]
[312180888,1705681843336,-722.25,0.00027671,2]
[312180889,1705681843346,-14127.28,0.00027671,2]
[312180890,1705681843356,-500.0,0.00027671,2]
[312180891,1705681843366,-500.0,0.00027671,2]
[312180892,1705681843375,-588.66,0.00027671,2]
[312180893,1705681843385,-500.0,0.00027671,2]
[312180894,1705681843395,-864.61,0.00027671,2]
[312180895,1705681843409,-656.57,0.00027671,2]
[312180896,1705681843419,-500.0,0.00027671,2]
[312180897,1705681843428,-356.3190286,0.00027671,2]
[312180898,1705681843438,-500.0,0.00027671,2]
[312180899,1705681843447,-507.84931594,0.00027671,2]
[312180900,1705681843456,-504.67298462,0.00027671,2]
[312180901,1705681843466,-500.0,0.00027671,2]
[312180902,1705681843475,-500.0,0.00027671,2]
[312180903,1705681843484,-444.85689834,0.00027671,2]
[312180904,1705681843494,-1334.87,0.00027671,2]
[312180905,1705681843504,-500.0,0.00027671,2]
[312180906,1705681843513,-500.0,0.00027671,2]
[312180907,1705681843522,-500.0,0.00027671,2]
[312180908,1705681843531,-500.0,0.00027671,2]
[312180909,1705681843541,-220.07216442,0.00027671,2]
[312180910,1705681843551,-500.0,0.00027671,2]
[312180911,1705681843561,-500.0,0.00027671,2]
[312180912,1705681843571,-1613.11,0.00027671,2]
[312180913,1705681843581,-500.0,0.00027671,2]
[312180914,1705681843592,-500.0,0.00027671,2]
[312180915,1705681843602,-3692.83,0.00027671,2]
[312180916,1705681843612,-500.0,0.00027671,2]
[312180917,1705681843622,-500.0,0.00027671,2]
[312180918,1705681843631,-500.0,0.00027671,2]
[312180919,1705681843641,-500.0,0.00027671,2]
[312180920,1705681843653,-500.0,0.00027671,2]
[312180921,1705681843663,-500.0,0.00027671,2]
[312180922,1705681843672,-500.0,0.00027671,2]
[312180923,1705681843681,-1075.66,0.00027671,2]
[312180924,1705681843690,-1384.48,0.00027671,2]
[312180925,1705681843699,-500.0,0.00027671,2]
[312180926,1705681843709,-716.62,0.00027671,2]
[312180927,1705681843719,-777.15,0.00027671,2]
[312180928,1705681843792,-500.0,0.00027671,2]
[312180929,1705681843801,-500.0,0.00027671,2]
[312180930,1705681843811,-200.0,0.00027806,15]
[312180931,1705681843820,-500.0,0.00027944,2]
[312180932,1705681843829,-745.22,0.00027944,2]
[312180933,1705681843838,-6659.34,0.00027944,2]
[312180934,1705681843847,-842.15,0.00027944,2]
[312180935,1705681843856,-500.0,0.00027945,2]
[312180936,1705681843865,-500.0,0.00027945,2]
[312180937,1705681843874,-500.0,0.00027945,2]
[312180938,1705681843883,-465.73884966,0.00027945,2]
[312180939,1705681843893,-500.0,0.00027945,2]
[312180940,1705681843907,-367.3266649,0.00027945,2]
[312180941,1705681843916,-500.0,0.00027945,2]
[312180942,1705681843927,-500.0,0.00027945,2]
[312180943,1705681843935,-500.0,0.00027945,2]
[312180944,1705681843944,-500.0,0.00027945,2]
[312180945,1705681843953,-500.0,0.00027945,2]
[312180946,1705681843962,-500.0,0.00027945,2]
[312180947,1705681843970,-500.0,0.00027945,2]
[312180948,1705681843979,-500.0,0.00027945,2]
[312180949,1705681843987,-501.85237378,0.00027945,2]
[312180950,1705681843996,-506.64965042,0.00027945,2]
[312180951,1705681844005,-500.0,0.00027945,2]
[312180952,1705681844014,-500.0,0.00027945,2]
[312180953,1705681844024,-500.0,0.00027945,2]
[312180954,1705681844033,-511.50830956,0.00027945,2]
[312180955,1705681844042,-500.0,0.00027945,2]
[312180956,1705681844051,-500.0,0.00027945,2]
[312180957,1705681844061,-500.0,0.00027945,2]
[312180958,1705681844070,-500.0,0.00027945,2]
[312180959,1705681844079,-155.1627728,0.00027945,2]
[312180960,1705681844088,-500.0,0.00027945,2]
[312180961,1705681844097,-500.0,0.00027945,2]
[312180962,1705681844106,-1837.6,0.00027945,2]
[312180963,1705681844115,-500.0,0.00027945,2]
[312180964,1705681844125,-500.0,0.00027945,2]
[312180965,1705681844134,-500.0,0.00027945,2]
[312180966,1705681844143,-500.0,0.00027945,2]
[312180967,1705681844156,-491.60142791,0.00027945,2]
[312180968,1705681844166,-653.87,0.00027945,2]
[312180969,1705681844175,-500.0,0.00027945,2]
[312180970,1705681844186,-500.0,0.00027945,2]
[312180971,1705681844195,-500.0,0.00027945,2]
[312180972,1705681844205,-500.0,0.00027945,2]
[312180974,1705681844215,-210.96753345,0.00027945,2]
[312180976,1705681844225,-506.36136308,0.00027945,2]
[312180978,1705681844235,-500.0,0.00027945,2]
[312180980,1705681844244,-511.35001389,0.00027945,2]
[312180982,1705681844253,-500.0,0.00027945,2]
[312180984,1705681844264,-500.0,0.00027945,2]
[312180986,1705681844273,-500.0,0.00027945,2]
[312180988,1705681844283,-500.0,0.00027945,2]
[312180990,1705681844293,-500.0,0.00027945,2]
[312180992,1705681844302,-500.0,0.00027945,2]
[312180994,1705681844311,-947.99,0.00027945,2]
[312180996,1705681844321,-500.0,0.00027945,2]
[312180998,1705681844330,-500.0,0.00027945,2]
[312181000,1705681844339,-500.0,0.00027945,2]
[312181002,1705681844349,-500.0,0.00027945,2]
[312181004,1705681844358,-500.0,0.00027945,2]
[312181006,1705681844367,-500.0,0.00027945,2]
[312181008,1705681844376,-265.93546667,0.00027945,2]
[312181011,1705681844398,-234.06453333,0.00027945,2]
[312181013,1705681844411,-500.0,0.00027945,2]
[312181015,1705681844421,-500.0,0.00027945,2]
[312181017,1705681844430,-500.0,0.00027945,2]
[312181019,1705681844439,-500.0,0.00027945,2]
[312181021,1705681844448,-500.0,0.00027945,2]
[312181022,1705681844457,-1088.19,0.00027945,2]
[312181023,1705681844467,-500.0,0.00027945,2]
[312181024,1705681844477,-684.42,0.00027945,2]
[312181025,1705681844487,-399.71925343,0.00027945,2]
[312181026,1705681844496,-3450.28,0.00027945,2]
[312181027,1705681844505,-500.0,0.00027945,2]
[312181028,1705681844515,-846.17573612,0.00027945,2]
[312181029,1705681844526,-1016.02760845,0.00027945,2]
[312181030,1705681844538,-1078.60667109,0.00027945,2]
[312181031,1705681844551,-724.77998434,0.00027945,2]
[312181032,1705681844561,-7.22001566,0.00027945,2]
[312181035,1705681844578,-336.38345013,0.00027945,2]
[312181037,1705681844587,-83.52606021,0.00027945,2]
[312181039,1705681844598,-771.62393979,0.00027945,2]
[312181041,1705681844608,-21.35304252,0.00027945,2]
[312181042,1705681844619,-588.28695748,0.00027945,2]
[312181044,1705681844628,-500.0,0.00027945,2]
[312181046,1705681844636,-712.0,0.00027945,2]
[312181048,1705681844646,-500.0,0.00027945,2]
[312181050,1705681844662,-500.0,0.00027945,2]
[312181052,1705681844672,-1748.19,0.00027945,2]
[312181054,1705681844682,-500.0,0.00027945,2]
[312181056,1705681844691,-500.0,0.00027945,2]
[312181058,1705681844701,-10693.43,0.00027945,2]
[312181060,1705681844710,-2978.47,0.00027945,2]
[312181062,1705681844721,-698.19,0.00027945,2]
[312181064,1705681844731,-454.30429617,0.00027945,2]
[312181066,1705681844740,-500.0,0.00027945,2]
[312181068,1705681844753,-500.0,0.00027945,2]
[312181070,1705681844763,-722.25,0.00027945,2]
[312181072,1705681844772,-14127.28,0.00027945,2]
[312181073,1705681844781,-500.0,0.00027945,2]
[312181075,1705681844790,-588.66,0.00027945,2]
[312181077,1705681844799,-500.0,0.00027945,2]
[312181079,1705681844808,-864.61,0.00027945,2]
[312181080,1705681844818,-656.57,0.00027945,2]
[312181082,1705681844827,-500.0,0.00027945,2]
[312181083,1705681844836,-500.0,0.00027945,2]
[312181085,1705681844845,-500.0,0.00027945,2]
[312181087,1705681844854,-1334.87,0.00027945,2]
[312181088,1705681844863,-500.0,0.00027945,2]
[312181089,1705681844872,-316.5402139,0.00027945,2]
[312181090,1705681844882,-500.0,0.00027945,2]
[312181091,1705681844891,-500.0,0.00027945,2]
[312181092,1705681844904,-500.0,0.00027945,2]
[312181093,1705681844913,-1613.11,0.00027945,2]
[312181094,1705681844922,-500.0,0.00027945,2]
[312181095,1705681844931,-3692.83,0.00027945,2]
[312181096,1705681844940,-500.0,0.00027945,2]
[312181097,1705681844949,-500.0,0.00027945,2]
[312181098,1705681844958,-500.0,0.00027945,2]
[312181099,1705681844967,-500.0,0.00027945,2]
[312181100,1705681844976,-500.0,0.00027945,2]
[312181101,1705681844985,-1075.66,0.00027945,2]
[312181102,1705681844994,-1384.48,0.00027945,2]
[312181103,1705681845003,-500.0,0.00027945,2]
[312181104,1705681845011,-716.62,0.00027945,2]
[312181105,1705681845020,-777.15,0.00027945,2]
[312181106,1705681845031,-442.18135865,0.00027945,2]
[312181107,1705681845040,-290.08228321,0.00028,2]
[312181108,1705681845049,-154.84515485,0.00028,10]
[312181109,1705681845059,-1500.0,0.00028,2]
[312181110,1705681845074,-710.53399492,0.00028008,2]
[312181111,1705681845084,-1815.68321298,0.00028117,2]
[312181112,1705681845094,-671.76298502,0.00028117,2]
[312181113,1705681845104,-327.18048,0.00028117,2]
[312181114,1705681845114,-285.81505308,0.00028117,2]
[312181115,1705681845123,-2030.90555518,0.00028117,2]
[312181116,1705681845133,-155.82373188,0.00028117,2]
[312181117,1705681845142,-856.78540312,0.00028117,2]
[312181118,1705681845156,-156.00838388,0.00028117,2]
[312181119,1705681845165,-857.57949591,0.00028117,2]
[312181120,1705681845175,-181.40465391,0.00028117,2]
[312181121,1705681845186,-155.23010795,0.00028117,2]
[312181122,1705681845195,-2650.95866747,0.00028117,2]
[312181123,1705681845204,-191.16884209,0.00028118,2]
[312181125,1705681845274,-3327.41901642,0.00028118,2]
[312181126,1705681845284,-1000.0,0.00028135,2]
[312181127,1705681845294,-1000.0,0.00028178,2]
[312181128,1705681845305,-1000.0,0.0002821,2]
[312181131,1705681845314,-407.17228242,0.00028218,4]
[312181133,1705681845323,-515.13509119,0.00028218,4]
[312181134,1705681845333,-203.57851541,0.00028218,4]
[312181135,1705681845343,-365.26011049,0.00028218,4]
[312181137,1705681845353,-500.0,0.00028218,2]
[312181139,1705681845363,-745.22,0.00028218,2]
[312181141,1705681845372,-6659.34,0.00028218,2]
[312181143,1705681845381,-842.15,0.00028218,2]
[312181144,1705681845391,-500.0,0.00028219,2]
[312181145,1705681845404,-332.97668034,0.00028219,2]
[312181146,1705681845413,-500.0,0.00028219,2]
[312181147,1705681845422,-500.0,0.00028219,2]
[312181148,1705681845432,-500.0,0.00028219,2]
[312181149,1705681845441,-304.34803325,0.00028219,2]
[312181150,1705681845450,-500.0,0.00028219,2]
[312181151,1705681845459,-500.0,0.00028219,2]
[312181152,1705681845468,-500.0,0.00028219,2]
[312181153,1705681845478,-356.98673676,0.00028219,2]
[312181154,1705681845487,-500.0,0.00028219,2]
[312181155,1705681845497,-500.0,0.00028219,2]
[312181156,1705681845506,-500.0,0.00028219,2]
[312181157,1705681845515,-500.0,0.00028219,2]
[312181158,1705681845524,-500.0,0.00028219,2]
[312181159,1705681845534,-500.0,0.00028219,2]
[312181160,1705681845543,-500.0,0.00028219,2]
[312181161,1705681845552,-1837.6,0.00028219,2]
[312181162,1705681845561,-500.0,0.00028219,2]
[312181163,1705681845570,-500.0,0.00028219,2]
[312181164,1705681845579,-500.0,0.00028219,2]
[312181165,1705681845588,-500.0,0.00028219,2]
[312181166,1705681845598,-653.87,0.00028219,2]
[312181167,1705681845606,-500.0,0.00028219,2]
[312181168,1705681845616,-500.0,0.00028219,2]
[312181169,1705681845625,-500.0,0.00028219,2]
[312181170,1705681845634,-500.0,0.00028219,2]
[312181171,1705681845643,-500.0,0.00028219,2]
[312181172,1705681845657,-500.0,0.00028219,2]
[312181173,1705681845666,-500.0,0.00028219,2]
[312181174,1705681845675,-500.0,0.00028219,2]
[312181175,1705681845684,-947.99,0.00028219,2]
[312181176,1705681845693,-500.0,0.00028219,2]
[312181177,1705681845702,-500.0,0.00028219,2]
[312181178,1705681845711,-500.0,0.00028219,2]
[312181179,1705681845720,-500.0,0.00028219,2]
[312181180,1705681845730,-500.0,0.00028219,2]
[312181181,1705681845739,-500.0,0.00028219,2]
[312181182,1705681845748,-500.0,0.00028219,2]
[312181183,1705681845758,-500.0,0.00028219,2]
[312181184,1705681845768,-500.0,0.00028219,2]
[312181185,1705681845777,-500.0,0.00028219,2]
[312181186,1705681845787,-1088.19,0.00028219,2]
[312181187,1705681845796,-500.0,0.00028219,2]
[312181188,1705681845806,-684.42,0.00028219,2]
[312181189,1705681845815,-3450.28,0.00028219,2]
[312181190,1705681845826,-500.0,0.00028219,2]
[312181191,1705681845835,-3665.59,0.00028219,2]
[312181192,1705681845845,-855.15,0.00028219,2]
[312181193,1705681845854,-609.64,0.00028219,2]
[312181194,1705681845864,-500.0,0.00028219,2]
[312181195,1705681845874,-712.0,0.00028219,2]
[312181196,1705681845883,-500.0,0.00028219,2]
[312181197,1705681845892,-500.0,0.00028219,2]
[312181198,1705681845907,-1748.19,0.00028219,2]
[312181199,1705681845916,-500.0,0.00028219,2]
[312181200,1705681845925,-500.0,0.00028219,2]
[312181201,1705681845934,-10693.43,0.00028219,2]
[312181202,1705681845944,-2978.47,0.00028219,2]
[312181203,1705681845953,-698.19,0.00028219,2]
[312181204,1705681845962,-500.0,0.00028219,2]
[312181205,1705681845971,-722.25,0.00028219,2]
[312181206,1705681845981,-14127.28,0.00028219,2]
[312181207,1705681845990,-500.0,0.00028219,2]
[312181208,1705681845999,-588.66,0.00028219,2]
[312181209,1705681846008,-500.0,0.00028219,2]
[312181210,1705681846018,-864.61,0.00028219,2]
[312181211,1705681846027,-656.57,0.00028219,2]
[312181212,1705681846037,-500.0,0.00028219,2]
[312181213,1705681846046,-500.0,0.00028219,2]
[312181214,1705681846055,-1334.87,0.00028219,2]
[312181215,1705681846064,-559.90950028,0.00028219,2]
[312181216,1705681846074,-500.0,0.00028219,2]
[312181217,1705681846083,-500.0,0.00028219,2]
[312181218,1705681846093,-506.76501181,0.00028219,2]
[312181219,1705681846102,-1613.11,0.00028219,2]
[312181220,1705681846112,-500.0,0.00028219,2]
[312181221,1705681846121,-500.0,0.00028219,2]
[312181222,1705681846131,-3692.83,0.00028219,2]
[312181223,1705681846140,-500.0,0.00028219,2]
[312181224,1705681846153,-500.0,0.00028219,2]
[312181225,1705681846162,-500.0,0.00028219,2]
[312181226,1705681846172,-500.0,0.00028219,2]
[312181227,1705681846183,-1075.66,0.00028219,2]
[312181228,1705681846193,-1384.48,0.00028219,2]
[312181229,1705681846202,-500.0,0.00028219,2]
[312181230,1705681846212,-716.62,0.00028219,2]
[312181231,1705681846224,-777.15,0.00028219,2]
[312181232,1705681846234,-1000.0,0.00028333,2]
[312181233,1705681846244,-12841.39120009,0.00028367,4]